[Event "22nd ETCC Women 2019"]
[Site "Batumi"]
[Date "2019.10.25"]
[Round "2.32"]
[White "Makka, Ioulia"]
[Black "Gara, Ticia"]
[Result "0-1"]
[ECO "B47"]
[WhiteElo "2048"]
[BlackElo "2322"]
[Annotator "NA"]
[PlyCount "112"]
[EventDate "2019.10.24"]
[EventType "team-tourn"]
[EventCountry "GEO"]
[SourceTitle "playchess.com"]
[Source "ChessBase"]
[SourceQuality "1"]
[WhiteTeam "Greece"]
[BlackTeam "Hungary"]
[WhiteTeamCountry "GRE"]
[BlackTeamCountry "HUN"]
[TimeControl "40/5400+30:1800+30"]

1. e4 {[%emt 0:00:00]} c5 {[%emt 0:00:00]} 2. Nf3 {[%emt 0:00:00]} e6 {[%emt 0:00:00]} 3. d4 {[%emt 0:00:02]} cxd4 {[%emt 0:00:00]} 4. Nxd4 {[%emt 0:00:07]} Nc6 {[%emt 0:00:00]} 5. Nc3 {[%emt 0:00:38]} Qc7 {[%emt 0:00:17]} 6. f4 {[%emt 0:01:19]} a6 {[%emt 0:01:17]} 7. Nxc6 {[%emt 0:00:23]} Qxc6 {[%emt 0:00:35]} 8. Bd3 {[%emt 0:00:43]} Bc5 {[%emt 0:01:27]} 9. Qe2 {[%emt 0:04:04]} Ne7 {[%emt 0:01:51]} 10. Bd2 {[%emt 0:00:48]} O-O {[%emt 0:07:18]} 11. Rf1 {[%emt 0:24:39]} b5 {[%emt 0:03:48]} 12. a3 {[%emt 0:07:29]} Bb7 {[%emt 0:02:31]} 13. Rf3 {[%emt 0:07:01]} f5 {[%emt 0:08:51]} 14. Rh3 {[%emt 0:04:55]} g6 {[%emt 0:03:03]} 15. g4 {[%emt 0:03:30]} d5 {[%emt 0:12:17]} 16. exd5 {[%emt 0:11:58]} exd5 {[%emt 0:02:10]} 17. gxf5 {[%emt 0:09:25]} Nxf5 {[%emt 0:03:26]} 18. O-O-O {[%emt 0:00:54]} Rae8 {[%emt 0:02:13]} 19. Qf1 {[%emt 0:11:42]} Ne3 {[%emt 0:05:03]} 20. Bxe3 {[%emt 0:00:42]} Bxe3+ {[%emt 0:00:29]} 21. Kb1 {[%emt 0:00:43]} Rxf4 {[%emt 0:06:25]} 22. Qe1 {[%emt 0:02:52]} d4 {[%emt 0:01:15]} 23. Ne2 {[%emt 0:00:30]} Rf2 {[%emt 0:05:57]} 24. Qa5 {[%emt 0:01:37]} Rc8 {[%emt 0:03:45]} 25. Qb4 {[%emt 0:01:38]} Qc5 {[%emt 0:01:49]} 26. Qe1 {[%emt 0:01:42]} Bf3 {[%emt 0:13:21]} 27. c3 {[%emt 0:02:30]} Bxe2 {[%emt 0:01:01]} 28. Bxe2 {[%emt 0:00:43]} Qf5+ {[%emt 0:00:18]} 29. Rd3 {[%emt 0:00:47]} Rxe2 {[%emt 0:03:37]} 30. Qxe2 {[%emt 0:00:07]} Qxh3 {[%emt 0:00:04]} 31. cxd4 {[%emt 0:00:39]} Re8 {[%emt 0:01:10]} 32. d5 {[%emt 0:01:05]} Qh5 {[%emt 0:02:27]} 33. Qc2 {[%emt 0:00:33]} Qe5 {[%emt 0:03:40]} 34. d6 {[%emt 0:00:29]} Bg5 {[%emt 0:01:33]} 35. d7 {[%emt 0:00:39]} Rd8 {[%emt 0:01:06]} 36. Qb3+ {[%emt 0:00:31]} Kg7 {[%emt 0:00:11]} 37. Ka2 {[%emt 0:00:27]} Bf6 {[%emt 0:00:57]} 38. h3 {[%emt 0:00:36]} Qc5 {[%emt 0:02:47]} 39. Qd1 {[%emt 0:00:27]} b4 {[%emt 0:00:56]} 40. axb4 {[%emt 0:00:00]} Qxb4 {[%emt 0:00:00]} 41. Rd2 {[%emt 0:12:07]} Qa5+ {[%emt 0:06:10]} 42. Kb1 {[%emt 0:01:06]} Qf5+ {[%emt 0:00:17]} 43. Ka1 {[%emt 0:01:58]} Qxh3 {[%emt 0:00:19]} 44. Ka2 {[%emt 0:11:10]} Qe6+ {[%emt 0:01:29]} 45. Kb1 {[%emt 0:02:52]} Qe4+ {[%emt 0:01:42]} 46. Ka1 {[%emt 0:01:09]} Qb4 {[%emt 0:02:07]} 47. Kb1 {[%emt 0:02:28]} a5 {[%emt 0:01:11]} 48. Re2 {[%emt 0:01:27]} Qb5 {[%emt 0:02:28]} 49. Rd2 {[%emt 0:00:30]} Bc3 {[%emt 0:02:38]} 50. Rf2 {[%emt 0:00:32]} Rxd7 {[%emt 0:02:02]} 51. Qf3 {[%emt 0:00:39]} Qd3+ {[%emt 0:00:40]} 52. Qxd3 {[%emt 0:00:33]} Rxd3 {[%emt 0:00:03]} 53. bxc3 {[%emt 0:00:18]} Rxc3 {[%emt 0:00:03]} 54. Ra2 {[%emt 0:00:41]} Rc5 {[%emt 0:00:11]} 55. Kb2 {[%emt 0:00:20]} h5 {[%emt 0:00:08]} 56. Kb3 {[%emt 0:00:27]} h4 {[%emt 0:00:19]} 0-1

[Event "22nd ETCC Women 2019"]
[Site "Batumi"]
[Date "2019.10.25"]
[Round "2.33"]
[White "Golubenko, Valentina"]
[Black "Repkova, Eva"]
[Result "0-1"]
[ECO "D30"]
[WhiteElo "2274"]
[BlackElo "2315"]
[Annotator "NA"]
[PlyCount "114"]
[EventDate "2019.10.24"]
[EventType "team-tourn"]
[EventCountry "GEO"]
[SourceTitle "playchess.com"]
[Source "ChessBase"]
[SourceQuality "1"]
[WhiteTeam "Croatia"]
[BlackTeam "Slovakia"]
[WhiteTeamCountry "CRO"]
[BlackTeamCountry "SVK"]
[TimeControl "40/5400+30:1800+30"]

1. d4 {[%emt 0:00:00]} d5 {[%emt 0:00:53]} 2. c4 {[%emt 0:00:00]} e6 {[%emt 0:00:05]} 3. Nf3 {[%emt 0:00:17]} Nf6 {[%emt 0:00:06]} 4. g3 {[%emt 0:00:14]} Bb4+ {[%emt 0:00:06]} 5. Bd2 {[%emt 0:00:49]} Bd6 {[%emt 0:00:14]} 6. Bg2 {[%emt 0:02:21]} c6 {[%emt 0:00:11]} 7. Qc2 {[%emt 0:02:39]} Nbd7 {[%emt 0:02:20]} 8. O-O {[%emt 0:00:52]} O-O {[%emt 0:00:39]} 9. c5 {[%emt 0:02:31]} Bc7 {[%emt 0:02:11]} 10. Nc3 {[%emt 0:01:28]} e5 {[%emt 0:00:32]} 11. dxe5 {[%emt 0:07:45]} Nxe5 {[%emt 0:01:42]} 12. Nxe5 {[%emt 0:02:01]} Bxe5 {[%emt 0:00:08]} 13. Rad1 {[%emt 0:05:18]} Qe7 {[%emt 0:02:06]} 14. b4 {[%emt 0:01:52]} a5 {[%emt 0:00:05]} 15. a3 {[%emt 0:09:48]} axb4 {[%emt 0:00:36]} 16. axb4 {[%emt 0:00:20]} Bg4 {[%emt 0:00:49]} 17. f3 {[%emt 0:07:48]} Bh5 {[%emt 0:01:26]} 18. Rde1 {[%emt 0:05:45]} Ra3 {[%emt 0:01:55]} 19. Nb1 {[%emt 0:08:51]} Ra6 {[%emt 0:07:17]} 20. f4 {[%emt 0:03:48]} Bc7 {[%emt 0:02:37]} 21. Nc3 {[%emt 0:01:51]} Bg6 {[%emt 0:13:07]} 22. f5 {[%emt 0:02:47]} Bh5 {[%emt 0:00:04]} 23. e4 {[%emt 0:00:50]} d4 {[%emt 0:00:09]} 24. e5 {[%emt 0:08:51]} Bxe5 {[%emt 0:03:12]} 25. Bf4 {[%emt 0:03:05]} Nd7 {[%emt 0:04:50]} 26. b5 {[%emt 0:07:22]} Ra3 {[%emt 0:05:22]} 27. Nb1 {[%emt 0:00:29]} Ra5 {[%emt 0:02:39]} 28. g4 {[%emt 0:13:26]} Bxg4 {[%emt 0:02:06]} 29. Bxe5 {[%emt 0:00:22]} Nxe5 {[%emt 0:00:06]} 30. Qe4 {[%emt 0:00:38]} Re8 {[%emt 0:03:08]} 31. Nd2 {[%emt 0:00:26]} Rxb5 {[%emt 0:04:41]} 32. Qf4 {[%emt 0:00:19]} f6 {[%emt 0:06:02]} 33. Ne4 {[%emt 0:00:29]} Rd8 {[%emt 0:02:44]} 34. Ng3 {[%emt 0:00:42]} Qxc5 {[%emt 0:01:24]} 35. Rxe5 {[%emt 0:00:20]} Qxe5 {[%emt 0:00:25]} 36. Qxg4 {[%emt 0:00:02]} d3 {[%emt 0:00:45]} 37. Be4 {[%emt 0:00:36]} Qd4+ {[%emt 0:00:54]} 38. Kh1 {[%emt 0:00:09]} Rb4 {[%emt 0:03:47]} 39. Qd1 {[%emt 0:00:35]} Qe5 {[%emt 0:03:41]} 40. Qf3 {[%emt 0:00:00]} d2 {[%emt 0:00:00]} 41. Rd1 {[%emt 0:01:35]} Rdd4 {[%emt 0:04:14]} 42. Bc2 {[%emt 0:09:01]} Qd5 {[%emt 0:01:21]} 43. Qxd5+ {[%emt 0:02:17]} Rxd5 {[%emt 0:00:04]} 44. Kg2 {[%emt 0:00:38]} c5 {[%emt 0:01:07]} 45. Kf2 {[%emt 0:01:35]} c4 {[%emt 0:03:17]} 46. Ne2 {[%emt 0:03:56]} Rb2 {[%emt 0:00:50]} 47. Nc3 {[%emt 0:02:18]} Rd8 {[%emt 0:00:27]} 48. Be4 {[%emt 0:00:56]} b5 {[%emt 0:00:10]} 49. Bd5+ {[%emt 0:01:22]} Kf8 {[%emt 0:00:08]} 50. Be6 {[%emt 0:03:59]} Rd3 {[%emt 0:02:33]} 51. Nd5 {[%emt 0:07:34]} c3 {[%emt 0:00:28]} 52. h4 {[%emt 0:02:27]} c2 {[%emt 0:01:23]} 53. Ra1 {[%emt 0:00:02]} Rxd5 {[%emt 0:00:04]} 54. Ra8+ {[%emt 0:00:31]} Ke7 {[%emt 0:00:18]} 55. Ra7+ {[%emt 0:00:20]} Kd6 {[%emt 0:02:09]} 56. Rd7+ {[%emt 0:00:54]} Kc6 {[%emt 0:00:00]} 57. Rxd5 {[%emt 0:00:33]} d1=Q {[%emt 0:00:20]} 0-1

[Event "22nd ETCC Women 2019"]
[Site "Batumi"]
[Date "2019.10.25"]
[Round "2.34"]
[White "Hagarova, Zuzana"]
[Black "Franciskovic, Borka"]
[Result "1-0"]
[ECO "B13"]
[WhiteElo "2295"]
[BlackElo "2262"]
[Annotator "NA"]
[PlyCount "69"]
[EventDate "2019.10.24"]
[EventType "team-tourn"]
[EventCountry "GEO"]
[SourceTitle "playchess.com"]
[Source "ChessBase"]
[SourceQuality "1"]
[WhiteTeam "Slovakia"]
[BlackTeam "Croatia"]
[WhiteTeamCountry "SVK"]
[BlackTeamCountry "CRO"]
[TimeControl "40/5400+30:1800+30"]

1. e4 {[%emt 0:00:00]} c6 {[%emt 0:00:00]} 2. d4 {[%emt 0:00:00]} d5 {[%emt 0:00:00]} 3. exd5 {[%emt 0:00:00]} cxd5 {[%emt 0:00:00]} 4. Bd3 {[%emt 0:00:23]} Nc6 {[%emt 0:00:13]} 5. c3 {[%emt 0:00:05]} Nf6 {[%emt 0:01:44]} 6. Bf4 {[%emt 0:00:49]} Bg4 {[%emt 0:02:13]} 7. Qb3 {[%emt 0:00:34]} Qc8 {[%emt 0:05:36]} 8. Nd2 {[%emt 0:00:40]} e6 {[%emt 0:01:52]} 9. Ngf3 {[%emt 0:01:28]} Be7 {[%emt 0:02:19]} 10. O-O {[%emt 0:01:06]} Bh5 {[%emt 0:07:05]} 11. Rfe1 {[%emt 0:06:29]} Bg6 {[%emt 0:04:35]} 12. Bxg6 {[%emt 0:11:04]} hxg6 {[%emt 0:00:06]} 13. h3 {[%emt 0:01:21]} O-O {[%emt 0:05:28]} 14. Ne5 {[%emt 0:06:08]} Nxe5 {[%emt 0:24:21]} 15. Bxe5 {[%emt 0:00:26]} Qc6 {[%emt 0:03:10]} 16. Qd1 {[%emt 0:05:26]} b5 {[%emt 0:07:07]} 17. Re3 {[%emt 0:09:10]} b4 {[%emt 0:06:55]} 18. h4 {[%emt 0:06:36]} Rfc8 {[%emt 0:07:17]} 19. Rh3 {[%emt 0:05:41]} bxc3 {[%emt 0:00:58]} 20. bxc3 {[%emt 0:00:18]} Qa6 {[%emt 0:04:29]} 21. h5 {[%emt 0:20:59]} gxh5 {[%emt 0:07:48]} 22. Qf3 {[%emt 0:04:47]} Qa4 {[%emt 0:05:34]} 23. Nb3 {[%emt 0:03:51]} a5 {[%emt 0:01:54]} 24. Bxf6 {[%emt 0:04:29]} Bxf6 {[%emt 0:00:09]} 25. Qxh5 {[%emt 0:00:28]} Kf8 {[%emt 0:00:45]} 26. Nc5 {[%emt 0:04:38]} Qc2 {[%emt 0:00:33]} 27. Rf3 {[%emt 0:02:46]} Ke7 {[%emt 0:00:45]} 28. Re3 {[%emt 0:01:24]} Rd8 {[%emt 0:00:29]} 29. Rae1 {[%emt 0:00:32]} Rd6 {[%emt 0:00:28]} 30. Qh3 {[%emt 0:00:34]} Ra7 {[%emt 0:00:32]} 31. Nxe6 {[%emt 0:01:00]} fxe6 {[%emt 0:00:21]} 32. Rxe6+ {[%emt 0:00:09]} Rxe6 {[%emt 0:00:13]} 33. Qxe6+ {[%emt 0:00:12]} Kd8 {[%emt 0:00:02]} 34. Qb6+ {[%emt 0:01:09]} Rc7 {[%emt 0:00:04]} 35. Qb8+ {[%emt 0:00:09]} 1-0

[Event "22nd ETCC Women 2019"]
[Site "Batumi"]
[Date "2019.10.25"]
[Round "2.35"]
[White "Medic, Mirjana"]
[Black "Movsesian, Julia"]
[Result "1/2-1/2"]
[ECO "D31"]
[WhiteElo "2163"]
[BlackElo "2307"]
[Annotator "NA"]
[PlyCount "60"]
[EventDate "2019.10.24"]
[EventType "team-tourn"]
[EventCountry "GEO"]
[SourceTitle "playchess.com"]
[Source "ChessBase"]
[SourceQuality "1"]
[WhiteTeam "Croatia"]
[BlackTeam "Slovakia"]
[WhiteTeamCountry "CRO"]
[BlackTeamCountry "SVK"]
[TimeControl "40/5400+30:1800+30"]

1. d4 {[%emt 0:00:00]} d5 {[%emt 0:00:00]} 2. c4 {[%emt 0:00:00]} e6 {[%emt 0:00:00]} 3. Nc3 {[%emt 0:00:00]} a6 {[%emt 0:00:22]} 4. cxd5 {[%emt 0:03:50]} exd5 {[%emt 0:00:18]} 5. Qc2 {[%emt 0:00:32]} Nf6 {[%emt 0:01:50]} 6. Bg5 {[%emt 0:00:23]} Be6 {[%emt 0:05:00]} 7. e3 {[%emt 0:01:51]} Bd6 {[%emt 0:08:45]} 8. Bd3 {[%emt 0:01:00]} h6 {[%emt 0:01:54]} 9. Bh4 {[%emt 0:02:28]} Nbd7 {[%emt 0:08:29]} 10. Nge2 {[%emt 0:05:15]} Qe7 {[%emt 0:06:10]} 11. Bg3 {[%emt 0:06:56]} Bxg3 {[%emt 0:11:31]} 12. Nxg3 {[%emt 0:00:08]} O-O {[%emt 0:00:08]} 13. O-O {[%emt 0:01:08]} Nb6 {[%emt 0:07:35]} 14. Rad1 {[%emt 0:07:12]} Rfe8 {[%emt 0:05:36]} 15. Rfe1 {[%emt 0:03:10]} Rad8 {[%emt 0:02:59]} 16. Na4 {[%emt 0:32:56]} Nxa4 {[%emt 0:04:37]} 17. Qxa4 {[%emt 0:00:03]} Ne4 {[%emt 0:01:00]} 18. Qc2 {[%emt 0:04:17]} Nxg3 {[%emt 0:04:02]} 19. hxg3 {[%emt 0:00:06]} c6 {[%emt 0:00:32]} 20. Bf5 {[%emt 0:05:52]} Qg5 {[%emt 0:00:24]} 21. Bh3 {[%emt 0:06:05]} h5 {[%emt 0:03:01]} 22. e4 {[%emt 0:02:42]} Bxh3 {[%emt 0:02:17]} 23. gxh3 {[%emt 0:00:02]} dxe4 {[%emt 0:00:44]} 24. Rxe4 {[%emt 0:00:37]} Rxe4 {[%emt 0:00:04]} 25. Qxe4 {[%emt 0:00:08]} Qd5 {[%emt 0:00:13]} 26. Qxd5 {[%emt 0:01:51]} Rxd5 {[%emt 0:01:42]} 27. Kf1 {[%emt 0:00:15]} c5 {[%emt 0:02:26]} 28. Ke2 {[%emt 0:00:09]} cxd4 {[%emt 0:00:46]} 29. Kd3 {[%emt 0:00:18]} Rd7 {[%emt 0:05:26]} 30. Re1 {[%emt 0:02:09]} Kf8 {[%emt 0:07:18]} 1/2-1/2

[Event "22nd ETCC Women 2019"]
[Site "Batumi"]
[Date "2019.10.25"]
[Round "2.36"]
[White "Cibickova, Zuzana"]
[Black "Cvitan, Ena"]
[Result "1/2-1/2"]
[ECO "B10"]
[WhiteElo "2258"]
[BlackElo "2182"]
[Annotator "NA"]
[PlyCount "120"]
[EventDate "2019.10.24"]
[EventType "team-tourn"]
[EventCountry "GEO"]
[SourceTitle "playchess.com"]
[Source "ChessBase"]
[SourceQuality "1"]
[WhiteTeam "Slovakia"]
[BlackTeam "Croatia"]
[WhiteTeamCountry "SVK"]
[BlackTeamCountry "CRO"]
[TimeControl "40/5400+30:1800+30"]

1. e4 {[%emt 0:00:00]} c6 {[%emt 0:00:00]} 2. Nc3 {[%emt 0:00:00]} d5 {[%emt 0:00:00]} 3. Nf3 {[%emt 0:00:00]} dxe4 {[%emt 0:00:21]} 4. Nxe4 {[%emt 0:00:00]} Nf6 {[%emt 0:00:04]} 5. Nxf6+ {[%emt 0:00:27]} exf6 {[%emt 0:00:09]} 6. g3 {[%emt 0:00:24]} Bd6 {[%emt 0:08:28]} 7. Bg2 {[%emt 0:00:06]} O-O {[%emt 0:00:05]} 8. O-O {[%emt 0:00:04]} Na6 {[%emt 0:01:16]} 9. d3 {[%emt 0:17:35]} Re8 {[%emt 0:03:20]} 10. Be3 {[%emt 0:01:18]} Nc7 {[%emt 0:02:06]} 11. c4 {[%emt 0:04:09]} Be6 {[%emt 0:04:31]} 12. Qb3 {[%emt 0:17:45]} Qc8 {[%emt 0:04:05]} 13. Rfe1 {[%emt 0:06:56]} a5 {[%emt 0:06:56]} 14. a3 {[%emt 0:08:23]} a4 {[%emt 0:13:52]} 15. Qc2 {[%emt 0:00:29]} Qd7 {[%emt 0:02:30]} 16. Nd2 {[%emt 0:08:20]} Be7 {[%emt 0:15:06]} 17. Ne4 {[%emt 0:09:40]} Rad8 {[%emt 0:07:47]} 18. Bb6 {[%emt 0:02:15]} Rb8 {[%emt 0:07:43]} 19. Qxa4 {[%emt 0:02:34]} Na8 {[%emt 0:00:46]} 20. Ba7 {[%emt 0:09:18]} Rbc8 {[%emt 0:05:04]} 21. Nc5 {[%emt 0:02:35]} Bxc5 {[%emt 0:00:32]} 22. Bxc5 {[%emt 0:00:01]} Qxd3 {[%emt 0:00:53]} 23. Bf1 {[%emt 0:00:47]} Qf3 {[%emt 0:02:34]} 24. Qd1 {[%emt 0:02:12]} Qf5 {[%emt 0:00:57]} 25. Be3 {[%emt 0:02:52]} Red8 {[%emt 0:01:43]} 26. Qe2 {[%emt 0:00:10]} Qg6 {[%emt 0:01:55]} 27. Rad1 {[%emt 0:00:34]} Re8 {[%emt 0:01:00]} 28. Rd4 {[%emt 0:00:35]} Nb6 {[%emt 0:02:26]} 29. b3 {[%emt 0:00:50]} Nd7 {[%emt 0:01:05]} 30. Bf4 {[%emt 0:02:00]} Ra8 {[%emt 0:03:34]} 31. b4 {[%emt 0:02:20]} h5 {[%emt 0:00:27]} 32. Qd2 {[%emt 0:00:39]} Rxa3 {[%emt 0:00:51]} 33. Rxe6 {[%emt 0:00:31]} Rxe6 {[%emt 0:00:44]} 34. Rxd7 {[%emt 0:00:01]} Ra1 {[%emt 0:00:21]} 35. Be3 {[%emt 0:00:32]} Qb1 {[%emt 0:02:20]} 36. Rd8+ {[%emt 0:00:04]} Kh7 {[%emt 0:00:09]} 37. Qd3+ {[%emt 0:00:28]} f5 {[%emt 0:00:28]} 38. Qxb1 {[%emt 0:00:45]} Rxb1 {[%emt 0:00:02]} 39. Bd2 {[%emt 0:00:23]} f4 {[%emt 0:01:20]} 40. Rd3 {[%emt 0:00:00]} fxg3 {[%emt 0:00:00]} 41. hxg3 {[%emt 0:14:21]} h4 {[%emt 0:05:29]} 42. g4 {[%emt 0:02:27]} Re4 {[%emt 0:01:05]} 43. f4 {[%emt 0:10:33]} Rxc4 {[%emt 0:00:52]} 44. Kf2 {[%emt 0:02:09]} Rb2 {[%emt 0:01:21]} 45. Ke3 {[%emt 0:01:04]} g5 {[%emt 0:06:24]} 46. Rd7 {[%emt 0:00:56]} gxf4+ {[%emt 0:01:17]} 47. Kf3 {[%emt 0:00:17]} Rxd2 {[%emt 0:03:45]} 48. Rxf7+ {[%emt 0:01:14]} Kg6 {[%emt 0:00:11]} 49. Bxc4 {[%emt 0:00:05]} b5 {[%emt 0:00:24]} 50. Rxf4 {[%emt 0:01:04]} bxc4 {[%emt 0:00:47]} 51. Rxc4 {[%emt 0:00:16]} h3 {[%emt 0:02:59]} 52. Rxc6+ {[%emt 0:00:24]} Kg5 {[%emt 0:00:01]} 53. Rc5+ {[%emt 0:00:11]} Kg6 {[%emt 0:00:06]} 54. Rh5 {[%emt 0:00:56]} h2 {[%emt 0:00:06]} 55. Kg3 {[%emt 0:00:50]} Rb2 {[%emt 0:00:06]} 56. Rxh2 {[%emt 0:00:33]} Rxb4 {[%emt 0:00:09]} 57. Rc2 {[%emt 0:00:06]} Rb3+ {[%emt 0:00:50]} 58. Kh4 {[%emt 0:00:08]} Rb6 {[%emt 0:00:05]} 59. Rc8 {[%emt 0:00:53]} Ra6 {[%emt 0:00:12]} 60. Rg8+ {[%emt 0:00:26]} Kh7 {[%emt 0:00:35]} 1/2-1/2

[Event "22nd ETCC Women 2019"]
[Site "Batumi"]
[Date "2019.10.26"]
[Round "3.1"]
[White "Vega Gutierrez, Sabrina"]
[Black "Goryachkina, Aleksandra"]
[Result "0-1"]
[ECO "D17"]
[WhiteElo "2395"]
[BlackElo "2575"]
[Annotator "ChessBase"]
[PlyCount "140"]
[EventDate "2019.10.24"]
[EventType "team-tourn"]
[EventCountry "GEO"]
[SourceTitle "playchess.com"]
[Source "ChessBase"]
[SourceQuality "1"]
[WhiteTeam "Spain"]
[BlackTeam "Russia"]
[WhiteTeamCountry "ESP"]
[BlackTeamCountry "RUS"]
[TimeControl "40/5400+30:1800+30"]

1. d4 {[%emt 0:00:00]} d5 {[%emt 0:00:00]} 2. c4 {[%emt 0:00:00]} c6 {[%emt 0:00:00]} 3. Nc3 {[%emt 0:00:00]} Nf6 {[%emt 0:00:25]} 4. Nf3 {[%emt 0:00:06]} dxc4 {[%emt 0:00:13]} 5. a4 {[%emt 0:00:20]} Bf5 {[%emt 0:00:09]} 6. Ne5 {[%emt 0:00:43]} e6 {[%emt 0:02:39]} 7. f3 {[%emt 0:00:59]} Bb4 {[%emt 0:01:17]} 8. Nxc4 {[%emt 0:00:34]} O-O {[%emt 0:03:37]} 9. Kf2 {[%emt 0:00:45]} c5 {[%emt 0:02:22]} 10. e4 {[%emt 0:02:49]} Bg6 {[%emt 0:00:08]} 11. Na2 {[%emt 0:00:40]} Nc6 {[%emt 0:00:14]} 12. Nxb4 {[%emt 0:01:00]} Nxb4 {[%emt 0:00:06]} 13. Qb3 {[%emt 0:00:43]} Nxe4+ {[%emt 0:13:25]} 14. fxe4 {[%emt 0:00:14]} Bxe4 {[%emt 0:00:35]} 15. Bd2 {[%emt 0:01:08]} Nc2 {[%emt 0:06:07]} 16. Rc1 {[%emt 0:00:48]} Nxd4 {[%emt 0:01:24]} 17. Qd1 {[%emt 0:05:18]} b6 {[%emt 0:13:00]} 18. h4 {[%emt 0:27:15]} Qd5 {[%emt 0:04:16]} 19. h5 {[%emt 0:06:44]} Rad8 {[%emt 0:10:58]} 20. Rh3 {[%emt 0:06:38]} Qf5+ {[%emt 0:06:36]} 21. Kg1 {[%emt 0:00:54]} Bc2 {[%emt 0:01:24]} 22. Rxc2 {[%emt 0:13:17]} Qxc2 {[%emt 0:02:10]} 23. Qe1 {[%emt 0:00:53]} h6 {[%emt 0:03:34]} 24. Bxh6 {[%emt 0:06:19]} gxh6 {[%emt 0:09:44]} 25. Bd3 {[%emt 0:16:08]} Nf3+ {[%emt 0:01:40]} 26. Rxf3 {[%emt 0:00:10]} Rxd3 {[%emt 0:00:21]} 27. Qg3+ {[%emt 0:00:21]} Kh7 {[%emt 0:02:01]} 28. Rxd3 {[%emt 0:00:06]} Qxc4 {[%emt 0:00:17]} 29. Rd7 {[%emt 0:02:01]} Qc1+ {[%emt 0:07:09]} 30. Kh2 {[%emt 0:00:03]} Qg5 {[%emt 0:01:08]} 31. Qf3 {[%emt 0:03:11]} Qe5+ {[%emt 0:00:48]} 32. Kh1 {[%emt 0:01:29]} Kg7 {[%emt 0:01:22]} 33. b3 {[%emt 0:01:29]} a6 {[%emt 0:03:42]} 34. Qg4+ {[%emt 0:00:58]} Kh8 {[%emt 0:01:08]} 35. Qf3 {[%emt 0:00:03]} Kg8 {[%emt 0:01:33]} 36. Rb7 {[%emt 0:03:03]} Qe1+ {[%emt 0:00:10]} 37. Kh2 {[%emt 0:00:05]} Qh4+ {[%emt 0:00:03]} 38. Kg1 {[%emt 0:00:28]} Qd4+ {[%emt 0:00:50]} 39. Kh1 {[%emt 0:00:24]} b5 {[%emt 0:01:16]} 40. axb5 {[%emt 0:00:00]} axb5 {[%emt 0:00:00]} 41. Rxb5 {[%emt 0:16:55]} Rd8 {[%emt 0:03:24]} 42. Qg3+ {[%emt 0:05:09]} Kf8 {[%emt 0:01:56]} 43. Kh2 {[%emt 0:00:39]} Qd5 {[%emt 0:01:54]} 44. Qc3 {[%emt 0:08:31]} Qxh5+ {[%emt 0:00:58]} 45. Kg1 {[%emt 0:00:04]} Rd1+ {[%emt 0:06:24]} 46. Kf2 {[%emt 0:00:02]} Qf5+ {[%emt 0:01:36]} 47. Ke3 {[%emt 0:00:03]} Qg5+ {[%emt 0:00:27]} 48. Ke2 {[%emt 0:00:38]} Qxg2+ {[%emt 0:04:31]} 49. Kxd1 {[%emt 0:00:07]} Qf1+ {[%emt 0:00:03]} 50. Kc2 {[%emt 0:00:39]} Qxb5 {[%emt 0:00:11]} 51. Qh8+ {[%emt 0:00:23]} Ke7 {[%emt 0:00:03]} 52. Qxh6 {[%emt 0:00:05]} Qe2+ {[%emt 0:00:10]} 53. Kc3 {[%emt 0:01:19]} Qe1+ {[%emt 0:00:15]} 54. Kb2 {[%emt 0:00:28]} Qe5+ {[%emt 0:00:30]} 55. Ka2 {[%emt 0:00:06]} Qd5 {[%emt 0:01:54]} 56. Qh4+ {[%emt 0:00:36]} Ke8 {[%emt 0:00:53]} 57. Qh8+ {[%emt 0:00:16]} Kd7 {[%emt 0:00:08]} 58. Qg7 {[%emt 0:02:39]} Qd2+ {[%emt 0:01:58]} 59. Ka3 {[%emt 0:00:08]} Qc1+ {[%emt 0:00:47]} 60. Ka2 {[%emt 0:00:27]} Qf4 {[%emt 0:00:42]} 61. Qf8 {[%emt 0:00:15]} c4 {[%emt 0:04:58]} 62. bxc4 {[%emt 0:01:31]} Qxc4+ {[%emt 0:00:07]} 63. Kb2 {[%emt 0:00:51]} e5 {[%emt 0:00:13]} 64. Qb8 {[%emt 0:01:05]} Qd4+ {[%emt 0:00:56]} 65. Ka2 {[%emt 0:00:04]} Qd5+ {[%emt 0:00:38]} 66. Ka1 {[%emt 0:00:03]} e4 {[%emt 0:01:34]} 67. Qa7+ {[%emt 0:00:04]} Ke6 {[%emt 0:00:24]} 68. Qb6+ {[%emt 0:00:07]} Ke5 {[%emt 0:00:44]} 69. Qc7+ {[%emt 0:00:18]} Kf5 {[%emt 0:00:05]} 70. Qc8+ {[%emt 0:00:11]} Qe6 {[%emt 0:00:17]} 0-1